fUST/lending_fUST_20250808
["ID","MTS","AMOUNT","RATE_DAILY","PERIOD"]
[377869014,1754587873871,153.0,0.00027997,30]
[377869015,1754587873950,579.259526,0.00027997,30]
[377869016,1754587874063,153.0,0.00027997,30]
[377869017,1754587916493,1787.28600316,0.00021417,2]
[377869018,1754587916516,15000.0,0.00021417,2]
[377869019,1754587916538,15000.0,0.00021417,2]
[377869020,1754587916560,15000.0,0.00021417,2]
[377869021,1754587916581,15000.0,0.00021417,2]
[377869022,1754587916604,15000.0,0.00021417,2]
[377869023,1754587916641,15000.0,0.00021417,2]
[377869024,1754587916669,15000.0,0.00021417,2]
[377869025,1754587916693,15000.0,0.00021417,2]
[377869026,1754587916717,15000.0,0.00021417,2]
[377869027,1754587916744,15000.0,0.00021417,2]
[377869028,1754587916768,15000.0,0.00021417,2]
[377869029,1754587916794,15000.0,0.00021417,2]
[377869030,1754587916819,15000.0,0.00021417,2]
[377869031,1754587916842,15000.0,0.00021417,2]
[377869032,1754587916866,15000.0,0.00021417,2]
[377869033,1754587916889,15000.0,0.00021417,2]
[377869034,1754587916911,15000.0,0.00021417,2]
[377869035,1754587916935,15000.0,0.00021417,2]
[377869036,1754587916956,15000.0,0.00021417,2]
[377869037,1754587916979,15000.0,0.00021417,2]
[377869038,1754587917003,15000.0,0.00021417,2]
[377869039,1754587917026,15000.0,0.00021417,2]
[377869040,1754587917050,15000.0,0.00021417,2]
[377869041,1754587917074,15000.0,0.00021417,2]
[377869042,1754587917096,8212.71399684,0.00021417,2]
[377869043,1754587923031,4375.49581975,0.00021481,2]
[377869044,1754587934515,153.0,0.00027997,30]
[377869045,1754587936302,198.01869275,0.00020865,2]
[377869046,1754587937991,2213.77149066,0.00021481,2]
[377869047,1754587938014,2786.22850934,0.00021481,2]
[377869048,1754587953233,5000.0,0.00021481,2]
[377869049,1754587969492,5000.0,0.00021481,2]
[377869050,1754587974971,244.63410554,0.00021409,2]
[377869051,1754587985334,1969.13738512,0.00021481,2]
[377869052,1754587985358,3030.86261488,0.00021481,2]
[377869053,1754587993865,153.0,0.00027997,30]
[377869054,1754588001070,5000.0,0.00021481,2]
[377869055,1754588005246,692.17208784,0.00021409,2]
[377869057,1754588016393,5000.0,0.00021481,2]
[377869058,1754588032463,1276.96529728,0.00021481,2]
[377869059,1754588032485,3723.03470272,0.00021481,2]
[377869060,1754588039437,3957.89146604,0.00019178,2]
[377869061,1754588048891,5000.0,0.00021481,2]
[377869062,1754588051591,302.45875844,0.0002148,2]
[377869063,1754588054208,153.0,0.00027997,30]
[377869064,1754588068897,2016.6150728,0.00020629,2]
[377869065,1754588068919,15000.0,0.00020629,2]
[377869066,1754588068942,7883.3849272,0.00020629,2]
[377869067,1754588069658,5000.0,0.00021481,2]
[377869071,1754588080317,2116.6150728,0.00021473,2]
[377869072,1754588080339,15000.0,0.00021473,2]
[377869073,1754588080361,15000.0,0.00021473,2]
[377869074,1754588080383,15000.0,0.00021473,2]
[377869075,1754588080404,15000.0,0.00021473,2]
[377869076,1754588080426,15000.0,0.00021473,2]
[377869077,1754588080447,15000.0,0.00021473,2]
[377869078,1754588080469,15000.0,0.00021473,2]
[377869079,1754588080491,15000.0,0.00021473,2]
[377869080,1754588080513,15000.0,0.00021473,2]
[377869081,1754588080534,15000.0,0.00021473,2]
[377869082,1754588080557,15000.0,0.00021473,2]
[377869083,1754588080578,15000.0,0.00021473,2]
[377869084,1754588080599,15000.0,0.00021473,2]
[377869085,1754588080621,15000.0,0.00021473,2]
[377869086,1754588080642,15000.0,0.00021473,2]
[377869087,1754588080663,15000.0,0.00021473,2]
[377869088,1754588080685,15000.0,0.00021473,2]
[377869089,1754588080706,15000.0,0.00021473,2]
[377869090,1754588080732,15000.0,0.00021473,2]
[377869091,1754588080753,15000.0,0.00021473,2]
[377869092,1754588080773,15000.0,0.00021473,2]
[377869093,1754588080801,15000.0,0.00021473,2]
[377869094,1754588080824,15000.0,0.00021473,2]
[377869095,1754588080845,15000.0,0.00021473,2]
[377869096,1754588080867,7883.3849272,0.00021473,2]
[377869097,1754588085937,5000.0,0.00021481,2]
[377869098,1754588101267,2116.6150728,0.00021481,2]
[377869099,1754588101290,2883.3849272,0.00021481,2]
[377869100,1754588107627,150.0,0.00023846,30]
[377869101,1754588109093,4453.0,0.00021481,2]
[377869102,1754588116808,153.0,0.00027997,30]
[377869103,1754588117350,5000.0,0.00021481,2]
[377869104,1754588124551,220.47592482,8.8e-07,2]
[377869105,1754588133032,2443.13914798,0.00021481,2]
[377869106,1754588133058,2556.86085202,0.00021481,2]
[377869107,1754588149646,1398.61874606,0.00019417,2]
[377869108,1754588149712,5000.0,0.00021481,2]
[377869110,1754588165421,5000.0,0.00021481,2]
[377869111,1754588168161,1044.52040192,0.00020611,2]
[377869112,1754588168183,8337.28247748,0.00020611,2]
[377869114,1754588187584,5000.0,0.00021481,2]
[377869115,1754588191735,575.5479027,0.00020607,2]
[377869117,1754588203315,1087.16961982,0.00021481,2]
[377869118,1754588203338,3912.83038018,0.00021481,2]
[377869119,1754588219212,5000.0,0.00021481,2]
[377869120,1754588235381,5000.0,0.00021481,2]
[377869121,1754588238359,286.376778,0.00020863,2]
[377869122,1754588238702,383.97593293,0.00020864,2]
[377869123,1754588243985,416.81690889,0.00021473,2]
[377869124,1754588244008,15000.0,0.00021473,2]
[377869125,1754588244031,15000.0,0.00021473,2]
[377869126,1754588244052,15000.0,0.00021473,2]
[377869127,1754588244075,15000.0,0.00021473,2]
[377869128,1754588244097,15000.0,0.00021473,2]
[377869129,1754588244122,15000.0,0.00021473,2]
[377869130,1754588244291,15000.0,0.00021473,2]
[377869131,1754588244313,15000.0,0.00021473,2]
[377869132,1754588244335,15000.0,0.00021473,2]
[377869133,1754588244356,15000.0,0.00021473,2]
[377869134,1754588244377,15000.0,0.00021473,2]
[377869135,1754588244397,15000.0,0.00021473,2]
[377869136,1754588244419,15000.0,0.00021473,2]
[377869137,1754588244441,15000.0,0.00021473,2]
[377869138,1754588244463,15000.0,0.00021473,2]
[377869139,1754588244484,15000.0,0.00021473,2]
[377869140,1754588244505,15000.0,0.00021473,2]
[377869141,1754588244527,15000.0,0.00021473,2]
[377869142,1754588244548,15000.0,0.00021473,2]
[377869143,1754588244570,15000.0,0.00021473,2]
[377869144,1754588244592,15000.0,0.00021473,2]
[377869145,1754588244614,15000.0,0.00021473,2]
[377869146,1754588244636,15000.0,0.00021473,2]
[377869147,1754588244659,15000.0,0.00021473,2]
[377869148,1754588244682,9583.18309111,0.00021473,2]
[377869150,1754588251864,5000.0,0.00021481,2]
[377869151,1754588260064,242.50669863,0.00021481,2]
[377869152,1754588268131,174.31021026,0.00021481,2]
[377869153,1754588268154,4825.68978974,0.00021481,2]
[377869154,1754588274359,159.11835374,0.00021407,2]
[377869156,1754588283551,5000.0,0.00021481,2]
[377869157,1754588298842,5000.0,0.00021481,2]
[377869158,1754588314112,15.19185652,0.00021481,2]
[377869159,1754588314147,4984.80814348,0.00021481,2]
[377869160,1754588330141,5000.0,0.00021481,2]
[377869163,1754588339828,252.33626998,0.00021407,2]
[377869164,1754588345944,4762.85558654,0.00021408,2]
[377869165,1754588345966,1679.14889231,0.00021408,2]
[377869166,1754588345994,5000.0,0.00021481,2]
[377869167,1754588362310,5000.0,0.00021481,2]
[377869168,1754588377467,3320.85110769,0.00021481,2]
[377869170,1754588391877,452.69383541,0.00021459,2]
[377869171,1754588403696,5000.0,0.00021079,2]
[377869172,1754588404008,5000.0,0.00019178,2]
[377869173,1754588407520,264065.9092111,0.00021409,2]
[377869175,1754588445226,252.33626998,0.00021407,2]
[377869176,1754588451562,2104.07885953,0.00019417,2]
[377869258,1754588481301,1920.0,0.0002148,7]
[377869259,1754588499729,574.277666,0.00020541,2]
[377869260,1754588523009,300.0,0.0002148,2]
[377869261,1754588539979,283.204316,0.00020837,2]
[377869262,1754588540328,465.38010612,0.00020837,2]
[377869263,1754588553872,19781.020473,0.00020546,2]
[377869264,1754588565611,5000.0,0.0002148,2]
[377869265,1754588580072,3087.140227,0.00020648,2]
[377869266,1754588581392,26147.087275,0.00020648,2]
[377869267,1754588582475,300.0,0.00021479,2]
[377869269,1754588583668,5000.0,0.0002148,2]
[377869270,1754588598775,1000.0,0.00020687,2]
[377869271,1754588599038,5000.0,0.0002148,2]
[377869272,1754588611213,243.7008018,0.00020695,2]
[377869273,1754588612755,3000.0,0.0002148,2]
[377869275,1754588616647,5000.0,0.0002148,2]
[377869276,1754588619375,876.311583,0.00013699,2]
[377869277,1754588619603,876.311583,0.00020187,2]
[377869279,1754588632534,5000.0,0.0002148,2]
[377869280,1754588642525,300.0,0.00021479,2]
[377869281,1754588648433,5000.0,0.0002148,2]
[377869282,1754588662071,1274.0,0.0002148,2]
[377869283,1754588664245,5000.0,0.0002148,2]
[377869284,1754588679452,5000.0,0.0002148,2]
[377869285,1754588695370,250.0,0.00021255,2]
[377869286,1754588697781,5000.0,0.0002148,2]
[377869287,1754588702537,300.0,0.00021479,2]
[377869288,1754588702603,300.0,0.00021479,2]
[377869289,1754588703066,300.0,0.00021479,2]
[377869292,1754588704759,300.0,0.00021479,2]
[377869293,1754588708861,818.975,0.0002148,2]
[377869294,1754588711055,300.0,0.00021479,2]
[377869295,1754588711693,1200.0,0.00021479,2]
[377869299,1754588713731,5000.0,0.0002148,2]
[377869302,1754588717705,50000.0,0.0002148,2]
[377869306,1754588729978,5000.0,0.0002148,2]
[377869308,1754588745494,5000.0,0.0002148,2]
[377869309,1754588753301,1402.71923968,0.0001938,2]
[377869310,1754588758147,42924.9574573,0.00020719,2]
[377869311,1754588760737,5000.0,0.0002148,2]
[377869312,1754588763202,300.0,0.00021479,2]
[377869314,1754588776513,5000.0,0.0002148,2]
[377869315,1754588777610,165.13115906,0.0002138,2]
[377869316,1754588782589,165.13115904,0.00021449,2]
[377869317,1754588784819,262.4097997,0.00020821,2]
[377869318,1754588786854,1048.58955959,0.00020821,2]
[377869319,1754588792213,5000.0,0.0002148,2]
[377869320,1754588794594,1200.0,0.00021479,2]
[377869321,1754588808109,5000.0,0.0002148,2]
[377869322,1754588824451,5000.0,0.0002148,2]
[377869323,1754588825526,300.0,0.0002148,2]
[377869324,1754588840199,915.87336141,0.0002148,2]
[377869325,1754588841634,307.54849527,0.00020837,2]
[377869326,1754588883101,300.0,0.0002148,2]
[377869327,1754588891110,2275.3203943,0.00020826,2]
[377869328,1754588943656,300.0,0.0002148,2]
[377869329,1754588952910,4965.473288,0.00020664,2]
[377869331,1754589002604,300.0,0.0002148,2]
[377869332,1754589009626,1200.0,0.0002148,2]
[377869338,1754589031902,-156.59294514,0.00021481,2]
[377869339,1754589031912,-542.12187518,0.00021481,2]
[377869340,1754589031954,-457.87812482,0.00021481,2]
[377869341,1754589031963,-1000.0,0.00021481,2]
[377869342,1754589031974,-1000.0,0.00021481,2]
[377869343,1754589031984,-1000.0,0.00021481,2]
[377869344,1754589031994,-1000.0,0.00021481,2]
[377869345,1754589032004,-1000.0,0.00021481,2]
[377869346,1754589032013,-1000.0,0.00021481,2]
[377869347,1754589032024,-1000.0,0.00021481,2]
[377869348,1754589032033,-1000.0,0.00021481,2]
[377869350,1754589032042,-86.48116209,0.00021481,2]
[377869487,1754589037825,-500.0,0.0002148,2]
[377869488,1754589037834,-500.0,0.0002148,2]
[377869489,1754589037843,-500.0,0.0002148,2]
[377869490,1754589037853,-500.0,0.0002148,2]
[377869492,1754589037862,-500.0,0.0002148,2]
[377869494,1754589037872,-500.0,0.0002148,2]
[377869495,1754589037881,-500.0,0.0002148,2]
[377869497,1754589037890,-500.0,0.0002148,2]
[377869499,1754589037899,-500.0,0.0002148,2]
[377869500,1754589037909,-500.0,0.0002148,2]
[377869501,1754589037919,-500.0,0.0002148,2]
[377869502,1754589037929,-500.0,0.0002148,2]
[377869503,1754589037938,-500.0,0.0002148,2]
[377869504,1754589037948,-500.0,0.0002148,2]
[377869505,1754589037957,-500.0,0.0002148,2]
[377869506,1754589037966,-500.0,0.0002148,2]
[377869507,1754589037980,-500.0,0.0002148,2]
[377869508,1754589037990,-500.0,0.0002148,2]
[377869509,1754589038000,-642.73976513,0.0002148,2]
[377869510,1754589038009,-242.99387526,0.0002148,2]
[377869511,1754589038019,-500.0,0.0002148,2]
[377869512,1754589038029,-500.0,0.0002148,2]
[377869513,1754589038039,-500.0,0.0002148,2]
[377869514,1754589038048,-500.0,0.0002148,2]
[377869515,1754589038059,-500.0,0.0002148,2]
[377869516,1754589038069,-500.0,0.0002148,2]
[377869517,1754589038078,-500.0,0.0002148,2]
[377869518,1754589038088,-500.0,0.0002148,2]
[377869519,1754589038098,-272.50290808,0.0002148,2]
[377869520,1754589038107,-649.84830486,0.0002148,2]
[377869521,1754589038117,-500.0,0.0002148,2]
[377869522,1754589038126,-500.0,0.0002148,2]
[377869523,1754589038136,-500.0,0.0002148,2]
[377869524,1754589038146,-500.0,0.0002148,2]
[377869525,1754589038155,-500.0,0.0002148,2]
[377869526,1754589038165,-500.0,0.0002148,2]
[377869527,1754589038175,-351.41906212,0.0002148,2]
[377869528,1754589038186,-500.0,0.0002148,2]
[377869529,1754589038196,-500.0,0.0002148,2]
[377869530,1754589038205,-500.0,0.0002148,2]
[377869531,1754589038214,-500.0,0.0002148,2]
[377869532,1754589038224,-913.51883791,0.00021481,2]
[377869533,1754589038233,-1000.0,0.00021481,2]
[377869534,1754589038242,-1000.0,0.00021481,2]
[377869535,1754589038252,-1000.0,0.00021481,2]
[377869536,1754589038261,-1000.0,0.00021481,2]
[377869537,1754589038271,-158.21124062,0.00021481,2]
[377869538,1754589038280,-36645.28224776,0.00021481,2]
[377869539,1754589038289,-160.0,0.00021509,2]
[377869540,1754589038299,-225.96712271,0.00021516,2]
[377869541,1754589038309,-165.13115904,0.00021517,2]
[377869542,1754589038318,-500.0,0.00021616,2]
[377869543,1754589038328,-2000.0,0.00021617,2]
[377869544,1754589038337,-1088.628,0.00021617,2]
[377869545,1754589038347,-2183.31810187,0.0002178,2]
[377869546,1754589038356,-2965.80415811,0.00021817,2]
[377869547,1754589038365,-13202.33812858,0.00021817,2]
[377869548,1754589038375,-2264.10087164,0.00021835,2]
[377869549,1754589038384,-500.0,0.0002189,2]
[377869550,1754589038394,-449.48,0.0002189,10]
[377869551,1754589038404,-2347.87260389,0.0002189,2]
[377869552,1754589038413,-151.0,0.000219,3]
[377869553,1754589038425,-153.0,0.000219,2]
[377869554,1754589038437,-151.0,0.000219,4]
[377869555,1754589038447,-151.0,0.000219,4]
[377869556,1754589038458,-691.5520691,0.000219,2]
[377869557,1754589038468,-430.943079,0.000219,2]
[377869558,1754589038478,-430.943079,0.000219,2]
[377869559,1754589038487,-430.943079,0.000219,2]
[377869560,1754589038497,-430.943079,0.000219,2]
[377869561,1754589038507,-430.943079,0.000219,2]
[377869562,1754589038516,-493.3756521,0.000219,2]
[377869563,1754589038525,-500.0,0.00021904,2]
[377869564,1754589038535,-151.23800125,0.00021904,2]
[377869565,1754589038544,-202.64979497,0.00021904,2]
[377869566,1754589038554,-151.0,0.00021904,2]
[377869567,1754589038564,-151.0,0.00021904,2]
[377869568,1754589038573,-151.0,0.00021904,2]
[377869569,1754589038583,-250.0,0.00021904,2]
[377869570,1754589038593,-300.0,0.00021904,2]
[377869571,1754589038603,-151.0,0.00021904,2]
[377869572,1754589038613,-250.0,0.00021904,2]
[377869573,1754589038623,-151.0,0.00021904,2]
[377869574,1754589038632,-300.0,0.00021904,2]
[377869575,1754589038641,-151.0,0.00021904,2]
[377869576,1754589038650,-250.0,0.00021904,2]
[377869577,1754589038660,-300.0,0.00021904,2]
[377869578,1754589038669,-151.0,0.00021904,2]
[377869579,1754589038679,-151.0,0.00021904,2]
[377869580,1754589038690,-250.0,0.00021904,2]
[377869581,1754589038699,-300.0,0.00021904,2]
[377869582,1754589038708,-151.0,0.00021904,2]
[377869583,1754589038718,-151.0,0.00021904,2]
[377869584,1754589038727,-151.0,0.00021904,2]
[377869585,1754589038736,-250.0,0.00021904,2]
[377869586,1754589038745,-300.0,0.00021904,2]
[377869587,1754589038754,-151.0,0.00021904,2]
[377869588,1754589038764,-151.0,0.00021904,2]
[377869589,1754589038773,-151.0,0.00021904,2]
[377869590,1754589038783,-250.0,0.00021904,2]
[377869591,1754589038792,-151.0,0.00021904,2]
[377869592,1754589038802,-151.0,0.00021904,2]
[377869593,1754589038811,-151.0,0.00021904,2]
[377869594,1754589038821,-300.0,0.00021904,2]
[377869595,1754589038831,-250.0,0.00021904,2]
[377869596,1754589038841,-151.0,0.00021904,2]
[377869597,1754589038853,-151.0,0.00021904,2]
[377869598,1754589038863,-151.0,0.00021904,2]
[377869599,1754589038873,-300.0,0.00021904,2]
[377869600,1754589038882,-250.0,0.00021904,2]
[377869601,1754589038892,-263.81787871,0.00021904,2]
[377869602,1754589038902,-151.0,0.00021904,2]
[377869603,1754589038912,-151.0,0.00021904,2]
[377869604,1754589038921,-250.0,0.00021904,2]
[377869605,1754589038931,-151.0,0.00021904,2]
[377869606,1754589038940,-151.0,0.00021904,2]
[377869607,1754589038950,-300.0,0.00021904,2]
[377869608,1754589038959,-250.0,0.00021904,2]
[377869609,1754589038970,-151.0,0.00021904,2]
[377869610,1754589038982,-151.0,0.00021904,2]
[377869611,1754589038992,-250.0,0.00021904,2]
[377869612,1754589039001,-151.0,0.00021904,2]
[377869613,1754589039010,-151.0,0.00021904,2]
[377869614,1754589039021,-151.0,0.00021904,2]
[377869615,1754589039030,-151.0,0.00021904,2]
[377869616,1754589039039,-151.0,0.00021904,2]
[377869617,1754589039049,-151.0,0.00021904,2]
[377869618,1754589039060,-151.0,0.00021904,2]
[377869619,1754589039069,-151.0,0.00021904,2]
[377869620,1754589039079,-151.0,0.00021904,2]
[377869621,1754589039089,-300.0,0.00021904,2]
[377869622,1754589039099,-151.0,0.00021904,2]
[377869623,1754589039110,-300.0,0.00021904,2]
[377869624,1754589039119,-151.0,0.00021904,2]
[377869625,1754589039129,-300.0,0.00021904,2]
[377869626,1754589039139,-151.0,0.00021904,2]
[377869627,1754589039149,-300.0,0.00021904,2]
[377869628,1754589039159,-151.0,0.00021904,2]
[377869629,1754589039169,-300.0,0.00021904,2]
[377869630,1754589039178,-151.0,0.00021904,2]
[377869631,1754589039187,-300.0,0.00021904,2]
[377869632,1754589039198,-151.0,0.00021904,2]
[377869633,1754589039207,-151.0,0.00021904,2]
[377869634,1754589039217,-300.0,0.00021904,2]
[377869635,1754589039227,-151.0,0.00021904,2]
[377869636,1754589039237,-300.0,0.00021904,2]
[377869637,1754589039246,-1876.15,0.00021907,3]
[377869638,1754589039256,-938.07,0.00021907,3]
[377869639,1754589039265,-469.04,0.00021907,3]
[377869640,1754589039275,-234.52,0.00021907,3]
[377869641,1754589039285,-703.56,0.00021907,3]
[377869642,1754589039295,-318.10303205,0.00021916,2]
[377869643,1754589039304,-500.0,0.00021916,2]
[377869644,1754589039314,-566.67631487,0.00021916,2]
[377869645,1754589039324,-500.0,0.00021916,2]
[377869646,1754589039333,-500.0,0.00021916,2]
[377869647,1754589039342,-500.0,0.00021916,2]
[377869648,1754589039353,-500.0,0.00021916,2]
[377869649,1754589039363,-500.0,0.00021916,2]
[377869650,1754589039373,-500.0,0.00021916,2]
[377869651,1754589039382,-628.92958199,0.00021916,2]
[377869652,1754589039392,-500.0,0.00021916,2]
[377869654,1754589039401,-500.0,0.00021916,2]
[377869655,1754589039533,-500.0,0.00021916,2]
[377869656,1754589039542,-500.0,0.00021916,2]
[377869657,1754589039552,-639.40846729,0.00021916,2]
[377869658,1754589039561,-500.0,0.00021916,2]
[377869659,1754589039570,-500.0,0.00021916,2]
[377869660,1754589039579,-500.0,0.00021916,2]
[377869661,1754589039589,-500.0,0.00021916,2]
[377869662,1754589039598,-500.0,0.00021916,2]
[377869663,1754589039607,-500.0,0.00021916,2]
[377869664,1754589039617,-500.0,0.00021916,2]
[377869665,1754589039627,-500.0,0.00021916,2]
[377869666,1754589039636,-639.40846729,0.00021916,2]
[377869667,1754589039645,-500.0,0.00021916,2]
[377869668,1754589039654,-500.0,0.00021916,2]
[377869669,1754589039664,-865.08645775,0.00021916,2]
[377869670,1754589039673,-865.08645775,0.00021916,2]
[377869671,1754589039683,-865.08645775,0.00021916,2]
[377869672,1754589039692,-460.0,0.00021917,2]
[377869673,1754589039702,-460.0,0.00021917,2]
[377869674,1754589039711,-460.0,0.00021917,2]
[377869675,1754589039721,-460.0,0.00021917,2]
[377869676,1754589039731,-460.0,0.00021917,2]
[377869677,1754589039741,-460.0,0.00021917,2]
[377869678,1754589039751,-460.0,0.00021917,2]
[377869679,1754589039760,-500.0,0.00021917,2]
[377869680,1754589039769,-500.0,0.00021917,2]
[377869681,1754589039779,-507.53893718,0.00021917,2]
[377869682,1754589039788,-460.0,0.00021917,2]
[377869683,1754589039797,-460.0,0.00021917,2]
[377869684,1754589039807,-460.0,0.00021917,2]
[377869685,1754589039816,-460.0,0.00021917,2]
[377869686,1754589039826,-460.0,0.00021917,2]
[377869687,1754589039835,-460.0,0.00021917,2]
[377869688,1754589039845,-460.0,0.00021917,2]
[377869689,1754589039855,-460.0,0.00021917,2]
[377869690,1754589039864,-569.86,0.00021917,2]
[377869691,1754589039873,-460.0,0.00021917,2]
[377869692,1754589039883,-492.77368024,0.00021917,2]
[377869693,1754589039893,-461.13883828,0.00021917,2]
[377869694,1754589039903,-460.0,0.00021917,2]
[377869695,1754589039912,-460.0,0.00021917,2]
[377869696,1754589039922,-460.0,0.00021917,2]
[377869697,1754589039932,-460.0,0.00021917,2]
[377869698,1754589039941,-460.0,0.00021917,2]
[377869699,1754589039951,-460.0,0.00021917,2]
[377869700,1754589039961,-460.0,0.00021917,2]
[377869701,1754589039970,-500.00000001,0.00021917,2]
[377869702,1754589039984,-460.0,0.00021917,2]
[377869704,1754589039993,-460.0,0.00021917,2]
[377869705,1754589040002,-460.0,0.00021917,2]
[377869706,1754589040011,-396.62771672,0.00021917,2]
[377869707,1754589040021,-460.0,0.00021917,2]
[377869708,1754589040031,-460.0,0.00021917,2]
[377869709,1754589040040,-460.0,0.00021917,2]
[377869710,1754589040050,-460.0,0.00021917,2]
[377869711,1754589040060,-220.0678531,0.00021917,2]
[377869712,1754589040069,-460.0,0.00021917,2]
[377869713,1754589040079,-460.0,0.00021917,2]
[377869714,1754589040089,-460.0,0.00021917,2]
[377869715,1754589040099,-460.0,0.00021917,2]
[377869716,1754589040108,-460.0,0.00021917,2]
[377869717,1754589040117,-460.0,0.00021917,2]
[377869718,1754589040127,-580.63717668,0.00021917,2]
[377869719,1754589040139,-460.0,0.00021917,2]
[377869720,1754589040148,-322.00088582,0.00021917,7]
[377869721,1754589040158,-460.0,0.00021917,2]
[377869722,1754589040168,-460.0,0.00021917,2]
[377869723,1754589040177,-460.0,0.00021917,2]
[377869724,1754589040186,-460.0,0.00021917,2]
[377869725,1754589040195,-460.0,0.00021917,2]
[377869726,1754589040205,-460.0,0.00021917,2]
[377869727,1754589040214,-460.0,0.00021917,2]
[377869728,1754589040223,-460.0,0.00021917,2]
[377869729,1754589040233,-464.01261431,0.00021917,2]
[377869730,1754589040243,-460.0,0.00021917,2]
[377869731,1754589040253,-460.0,0.00021917,2]
[377869732,1754589040262,-460.0,0.00021917,2]
[377869733,1754589040271,-460.0,0.00021917,2]
[377869734,1754589040280,-460.0,0.00021917,2]
[377869735,1754589040290,-460.0,0.00021917,2]
[377869736,1754589040299,-460.0,0.00021917,2]
[377869737,1754589040308,-460.0,0.00021917,2]
[377869738,1754589040318,-460.0,0.00021917,2]
[377869739,1754589040327,-460.0,0.00021917,2]
[377869740,1754589040336,-460.0,0.00021917,2]
[377869741,1754589040347,-460.0,0.00021917,2]
[377869742,1754589040356,-294.47530546,0.00021917,2]
[377869743,1754589040366,-460.0,0.00021917,2]
[377869744,1754589040375,-460.0,0.00021917,2]
[377869745,1754589040384,-460.0,0.00021917,2]
[377869746,1754589040393,-460.0,0.00021917,2]
[377869747,1754589040402,-460.0,0.00021917,2]
[377869748,1754589040412,-460.0,0.00021917,2]
[377869749,1754589040421,-507.93080935,0.00021917,2]
[377869750,1754589040430,-460.0,0.00021917,2]
[377869751,1754589040440,-460.0,0.00021917,2]
[377869752,1754589040449,-460.0,0.00021917,2]
[377869753,1754589040459,-460.0,0.00021917,2]
[377869754,1754589040468,-460.0,0.00021917,2]
[377869755,1754589040477,-460.0,0.00021917,2]
[377869756,1754589040487,-460.0,0.00021917,2]
[377869757,1754589040496,-460.0,0.00021917,2]
[377869758,1754589040506,-460.0,0.00021917,2]
[377869759,1754589040515,-460.0,0.00021917,2]
[377869760,1754589040524,-460.0,0.00021917,2]
[377869761,1754589040533,-460.0,0.00021917,2]
[377869762,1754589040542,-460.0,0.00021917,2]
[377869763,1754589040552,-460.0,0.00021917,2]
[377869764,1754589040561,-460.0,0.00021917,2]
[377869765,1754589040571,-463.31767143,0.00021917,2]
[377869766,1754589040580,-463.43173105,0.00021917,2]
[377869767,1754589040589,-460.0,0.00021917,2]
[377869768,1754589040599,-460.0,0.00021917,2]
[377869769,1754589040609,-460.0,0.00021917,2]
[377869770,1754589040618,-460.0,0.00021917,2]
[377869771,1754589040627,-460.0,0.00021917,2]